bitfinex/quotes_ETHUSD_20240821
["timestamp","ask_amount","ask_price","bid_price","bid_amount"]
[1724230959521,4.024,2585.1,2584.7,0.06343891]
[1724230959831,4.024,2585.1,2584.6,0.7]
[1724230960831,4.024,2585.1,2584.9,0.7]
[1724230961034,4.024,2585.4,2584.9,0.7]
[1724230961328,4.024,2585.4,2585.0,0.06342958]
[1724230961731,4.024,2585.1,2585.0,0.06342958]
[1724230962229,4.024,2585.1,2584.6,0.7]
[1724230962401,4.024,2585.1,2585.0,0.06113528]
[1724230962587,4.66379,2585.1,2584.6,0.7]
[1724230962786,4.66379,2585.1,2585.0,0.06113528]
[1724230963057,4.66379,2585.1,2584.6,0.7]
[1724230963411,4.66379,2585.1,2584.7,0.06113528]
[1724230964235,4.024,2585.1,2584.7,0.06113528]
[1724230965586,4.024,2585.1,2584.4,0.1]
[1724230965815,4.024,2584.9,2584.8,0.06117258]
[1724230966015,4.024,2584.9,2584.4,0.1]
[1724230966326,4.024,2584.9,2584.5,0.06116325]
[1724230967224,4.024,2584.9,2584.6,0.7]
[1724230967741,4.024,2584.9,2584.7,0.06116325]
[1724230967883,4.024,2585.2,2584.7,0.06116325]
[1724230968129,4.024,2585.2,2584.7,0.36917957]
[1724230969801,4.024,2585.5,2584.9,0.7]
[1724230970144,4.024,2585.5,2585.2,0.7]
[1724230970890,4.024,2585.5,2585.3,0.06112595]
[1724230971677,4.024,2585.8,2585.3,0.06112595]
[1724230973494,4.024,2586.1,2585.6,0.7]
[1724230973662,5.31163087,2586.1,2585.6,0.7]
[1724230973996,4.024,2586.1,2585.7,0.06063182]
[1724230974160,0.64320874,2586.3,2585.7,0.06063182]
[1724230974359,6.4171,2585.8,2585.7,0.06063182]
[1724230974772,6.4171,2585.8,2585.2,7.41]
[1724230975298,6.4171,2585.8,2585.3,0.05997927]
[1724230975450,8.83765049,2585.8,2585.2,7.41]
[1724230975669,8.83765049,2585.8,2585.3,0.06013771]
[1724230975874,0.88376505,2585.7,2585.2,7.41]
[1724230976069,0.88376505,2585.7,2585.3,0.06013771]
[1724230976309,0.88376505,2585.7,2585.2,7.41]
[1724230976778,0.88376505,2585.7,2585.3,0.06013771]
[1724230977166,0.88376505,2585.7,2585.2,7.41]
[1724230977367,8.83765049,2585.8,2585.2,7.41]
[1724230977368,0.97214155,2585.6,2585.2,7.41]
[1724230977667,0.97214155,2585.6,2585.3,0.06031482]
[1724230977895,0.97214155,2585.6,2584.7,0.7]
[1724230978099,0.97214155,2585.6,2584.8,0.06028685]
[1724230978412,0.97214155,2585.6,2585.1,0.7]
[1724230979076,0.97214155,2585.6,2585.2,0.06028685]
[1724230979898,2.4833,2585.5,2585.2,0.06028685]
[1724230980105,0.34554415,2585.4,2584.5,8.11]
[1724230980307,0.34554415,2585.4,2584.6,0.06023092]
[1724230980308,2.76609464,2585.4,2584.6,0.06023092]
[1724230980505,4.71285049,2585.3,2584.6,0.06023092]
[1724230980803,4.71285049,2585.3,2584.4,0.1]
[1724230980804,2.2923,2585.1,2584.4,0.1]
[1724230981120,4.024,2584.9,2584.4,0.1]
[1724230981322,4.024,2584.6,2584.5,0.06023092]
[1724230981503,6.4097,2584.6,2584.5,0.06023092]
[1724230981710,7.05067,2584.6,2584.4,0.1]
[1724230981901,9.47680206,2584.6,2584.4,0.1]
[1724230982246,2.4723,2584.5,2583.4,0.7]
[1724230982538,4.024,2583.7,2583.4,0.7]
[1724230982736,4.024,2583.7,2583.1,0.7]
[1724230983037,4.024,2583.7,2583.1,1.03010664]
[1724230983241,4.024,2583.7,2583.2,0.05621553]
[1724230984337,4.024,2583.4,2583.2,0.05621553]
[1724230984752,4.024,2583.4,2582.9,0.1238664]
[1724230985036,2.4723,2584.0,2583.3,0.0579225]
[1724230985235,2.4723,2584.0,2583.1,0.7]
[1724230985236,2.71953,2584.0,2583.1,0.7]
[1724230985550,3.0,2584.3,2583.4,0.7]
[1724230985844,2.4837,2584.4,2583.4,0.7]
[1724230986227,4.024,2584.0,2583.4,0.7]
[1724230986631,4.024,2584.0,2583.5,0.05785949]
[1724230987258,4.024,2584.0,2583.8,0.7]
[1724230987391,4.024,2584.6,2584.1,0.7]
[1724230987795,4.024,2584.6,2584.2,0.05785949]
[1724230988106,4.024,2584.6,2584.4,0.7]
[1724230988308,4.024,2584.9,2584.4,0.7]
[1724230988541,2.79943946,2585.2,2584.5,0.05785949]
[1724230988753,0.50583946,2585.2,2584.5,0.05785949]
[1724230989294,11.2062,2585.0,2584.5,0.05785949]
[1724230990098,12.37740395,2585.0,2584.5,0.05785949]
[1724230991545,12.37740395,2585.0,2584.1,2.9954]
[1724230991546,5.389,2584.6,2584.1,0.7]
[1724230991918,5.389,2584.6,2583.8,8.11]
[1724230992392,5.389,2584.6,2583.8,0.7]
[1724230995441,5.389,2584.6,2584.1,0.7]
[1724230996305,5.9279,2584.6,2583.8,0.7]
[1724230998224,5.389,2584.6,2583.8,0.7]
[1724230999650,2.4457,2584.9,2584.1,0.7]
[1724231000828,5.389,2584.7,2584.1,0.7]
[1724231001008,5.389,2584.7,2584.2,0.05473752]
[1724231001414,5.389,2584.7,2583.8,0.7]
[1724231001715,6.17247,2584.7,2583.8,0.7]
[1724231002126,6.17247,2584.7,2583.9,0.05473752]
[1724231002378,5.389,2584.3,2583.9,0.05473752]
[1724231002561,2.4858,2584.2,2583.9,0.05473752]
[1724231002867,2.4858,2584.2,2584.0,0.04900015]
[1724231003089,0.78748,2584.1,2584.0,0.04900015]
[1724231003211,0.78748,2584.1,2583.3,3.93]
[1724231003417,2.4858,2584.2,2584.0,0.04900015]
[1724231003633,2.4858,2584.2,2583.3,3.93]
[1724231004145,2.4858,2584.2,2583.4,0.04900015]
[1724231006062,2.4858,2584.2,2583.2,0.7]
[1724231006218,2.4858,2584.2,2583.5,0.04900015]
[1724231006428,0.78748,2584.1,2583.2,0.7]
[1724231006654,5.389,2583.9,2583.6,0.04900015]
[1724231006918,2.4053,2583.8,2583.2,0.7]
[1724231007250,2.4053,2584.3,2583.3,0.04940076]
[1724231007414,5.389,2583.9,2583.3,0.04940076]
[1724231007615,0.77943,2584.2,2583.3,0.04940076]
[1724231007868,7.7943,2584.3,2583.5,2.9808]
[1724231008219,5.389,2584.3,2583.5,2.9808]
[1724231008670,2.4053,2584.6,2583.8,0.7]
[1724231009202,8.2007,2584.9,2584.1,0.7]
[1724231009335,5.389,2584.8,2584.1,0.7]
[1724231009532,5.389,2584.8,2584.2,0.0493169]
[1724231012523,9.1378904,2584.9,2584.2,0.0493169]
[1724231013292,3.3206904,2584.9,2584.2,0.0493169]
[1724231013475,4.042,2584.5,2584.2,0.0493169]
[1724231013879,2.485,2584.4,2584.2,0.0493169]
[1724231014080,2.485,2584.4,2583.8,0.7]
[1724231014282,2.485,2584.4,2584.3,0.04897223]
[1724231014499,2.485,2584.4,2583.7,7.41]
[1724231014909,2.485,2584.4,2583.8,0.04725839]
[1724231015230,4.042,2583.9,2583.8,0.04725839]
[1724231015428,4.042,2583.9,2583.2,3.0521]
[1724231015429,6.527,2583.9,2583.2,0.7]
[1724231015628,6.527,2583.9,2583.8,0.04604655]
[1724231015927,6.527,2583.9,2583.2,0.7]
[1724231016295,4.042,2583.9,2583.5,0.7]
[1724231016498,2.2614,2584.2,2583.5,0.7]
[1724231016737,0.255032,2584.1,2583.5,0.7]
[1724231016899,0.255032,2584.1,2583.6,0.04658627]
[1724231017287,5.393,2584.1,2583.5,0.7]
[1724231017705,5.393,2584.1,2583.6,0.04658627]
[1724231022650,2.3569,2584.0,2583.6,0.04658627]
[1724231022795,2.3569,2584.0,2583.3,7.41]
[1724231023024,2.3569,2584.0,2583.7,0.04503339]
[1724231023191,0.77499,2583.9,2583.3,7.41]
[1724231023420,0.77499,2583.9,2583.8,0.04503339]
[1724231023693,5.8172,2584.4,2583.8,2.4095]
[1724231023893,5.8172,2584.4,2583.5,0.7]
[1724231024102,2.3846,2584.3,2583.5,0.7]
[1724231024401,2.3846,2584.3,2583.6,0.04503339]
[1724231024612,6.21318,2584.2,2583.6,0.04503339]
[1724231025109,2.402,2584.1,2583.6,0.04503339]
[1724231025304,2.402,2584.1,2583.2,0.7]
[1724231025760,2.402,2584.1,2583.3,0.04503339]
[1724231026145,2.402,2584.1,2583.2,0.7]
[1724231026324,2.96584727,2584.0,2583.2,0.7]
[1724231026530,5.393,2583.8,2583.2,0.7]
[1724231026731,5.393,2583.8,2583.3,0.04503339]
[1724231027241,5.393,2583.8,2583.4,0.04579653]
[1724231027647,5.393,2583.8,2582.9,0.1238664]
[1724231027813,0.5393,2583.7,2583.5,0.04579653]
[1724231028014,0.5393,2583.7,2582.9,0.1238664]
[1724231028361,0.5393,2583.7,2583.6,0.04579653]
[1724231028527,0.5393,2583.7,2582.9,0.1238664]
[1724231028965,0.5393,2583.7,2583.0,0.04579653]
[1724231029488,0.59323,2583.6,2583.0,0.04579653]
[1724231031426,11.2102,2583.8,2583.0,0.04579653]
[1724231034806,11.2102,2583.8,2583.2,2.2529]
[1724231035365,11.2102,2583.8,2583.1,0.7]
[1724231036398,5.393,2583.4,2582.9,0.1238664]
[1724231036550,0.5393,2583.3,2582.9,0.1238664]
[1724231036900,2.4289,2583.7,2582.9,2.5731664]
[1724231037047,3.0,2583.6,2583.0,0.0421875]
[1724231037253,5.4289,2583.7,2582.9,2.5731664]
[1724231037568,4.048,2583.5,2582.9,2.5731664]
[1724231037815,4.048,2583.2,2582.9,0.1238664]
[1724231038096,4.048,2583.2,2583.0,0.04234576]
[1724231038330,2.3632,2583.1,2583.0,0.04234576]
[1724231038481,4.048,2583.2,2583.0,0.04234576]
[1724231038800,4.048,2583.2,2582.9,0.1238664]
[1724231038950,0.63936,2583.1,2582.9,0.1238664]
[1724231039305,2.292,2583.0,2582.9,0.1238664]
[1724231040155,2.292,2583.0,2581.8,3.0599]
[1724231040502,2.292,2583.0,2581.9,0.04269028]
[1724231040705,3.45394375,2583.1,2581.5,0.7]
[1724231040706,4.048,2582.3,2581.5,0.7]
[1724231041011,2.3197,2582.4,2581.2,3.0716]
[1724231041012,0.63677,2582.2,2581.2,3.0716]
[1724231041168,2.3197,2582.4,2581.2,0.7]
[1724231041373,2.41348435,2582.5,2580.6,7.41]
[1724231041374,2.3197,2582.5,2581.3,0.04126728]
[1724231041708,2.3197,2582.5,2581.3,0.7]
[1724231041709,2.3197,2582.3,2581.3,0.7]
[1724231041867,2.4001,2582.6,2581.6,0.7]
[1724231042067,0.24001,2582.5,2581.6,0.7]
[1724231042275,0.24001,2582.5,2580.4,0.93273105]
[1724231042276,0.24001,2582.5,2580.7,2.4265]
[1724231042623,0.24001,2582.5,2580.7,3.1265]
[1724231042624,5.404,2581.5,2580.7,3.1265]
[1724231042807,5.404,2581.5,2580.8,0.04099061]
[1724231043671,5.404,2581.5,2580.4,0.1238664]
[1724231043872,0.5404,2581.4,2580.9,0.04004289]
[1724231044229,0.5404,2581.4,2580.4,0.1238664]
[1724231044521,5.404,2581.1,2580.5,0.04004289]
[1724231044875,0.5404,2581.4,2580.6,0.7]
[1724231045074,5.404,2581.4,2580.7,2.4265]
[1724231045328,2.443,2581.3,2580.4,0.1238664]
[1724231045498,2.443,2581.3,2580.8,0.040714]
[1724231045680,2.443,2581.3,2580.4,0.1238664]
[1724231045881,0.7847,2581.2,2580.9,0.03936339]
[1724231046106,0.7847,2581.2,2580.4,0.1238664]
[1724231046107,5.404,2581.0,2580.4,0.1238664]
[1724231047021,2.3029,2580.9,2580.4,0.1238664]
[1724231047340,5.404,2580.6,2580.4,0.1238664]
[1724231050966,3.7847,2581.2,2580.4,0.1238664]
[1724231050967,5.404,2581.0,2580.4,0.8238664]
[1724231051257,6.02287,2581.0,2580.4,0.1238664]
[1724231051538,2.3247,2580.9,2580.4,0.1238664]
[1724231051694,2.3247,2580.9,2580.4,0.0738664]
[1724231052798,6.02287,2581.0,2580.4,0.0738664]
[1724231053249,0.602287,2580.9,2580.4,0.0738664]
[1724231055429,5.8172,2581.4,2580.5,0.7]
[1724231055604,5.8172,2581.4,2580.6,2.2886]
[1724231056696,5.8172,2581.4,2580.5,0.7]
[1724231056697,5.8172,2581.8,2580.9,2.3782]
[1724231056898,5.8172,2581.8,2581.2,0.7]
[1724231057141,5.8172,2582.2,2581.3,2.4161]
[1724231057319,5.8172,2582.2,2581.3,2.72771]
[1724231057537,5.8172,2582.2,2581.5,0.7]
[1724231057711,5.8172,2582.5,2581.5,0.7]
[1724231057910,5.8172,2582.5,2581.6,2.9661]
[1724231058145,5.8172,2582.5,2581.8,0.7]
[1724231058412,5.8172,2582.5,2581.8,1.0702233]
[1724231058575,5.8172,2582.5,2581.9,0.03573203]
[1724231058721,14.4847,2583.1,2581.9,0.03573203]
[1724231058722,5.8172,2582.9,2582.2,2.3769]
[1724231058921,12.19,2583.1,2582.2,2.3769]
[1724231058922,5.404,2583.1,2582.2,2.3769]
[1724231059149,5.404,2583.1,2582.3,0.03524756]
[1724231059353,0.5404,2583.0,2582.3,0.03524756]
[1724231059820,2.3774,2583.5,2582.3,0.58524756]
[1724231059821,5.404,2583.5,2582.3,0.58524756]
[1724231060066,5.404,2583.5,2582.7,0.7]
[1724231060369,5.404,2583.5,2582.8,2.2802]
[1724231060679,5.404,2583.5,2582.8,2.06504709]
[1724231062269,5.404,2583.5,2582.8,2.0302]
[1724231062465,1.12212,2583.4,2582.7,0.7]
[1724231063680,1.12212,2583.4,2582.8,0.55]
[1724231063863,1.12212,2583.4,2582.9,2.4449]
[1724231064066,5.404,2583.5,2582.9,2.4449]
[1724231065666,5.404,2583.5,2582.6,9.7395]
[1724231066071,5.404,2583.5,2582.7,0.7]
[1724231066238,5.404,2583.5,2582.6,9.7395]
[1724231066437,2.2803,2584.0,2581.4,0.3868]
[1724231066438,5.404,2583.1,2582.2,2.3173]
[1724231066683,0.5404,2583.0,2582.2,2.3173]
[1724231066836,0.5404,2583.0,2581.9,0.7]
[1724231066837,0.5404,2583.0,2581.9,3.0173]
[1724231067038,3.0,2583.3,2581.9,3.0173]
[1724231067285,5.4853,2583.4,2581.9,2.3173]
[1724231068084,5.404,2582.8,2581.9,2.3173]
[1724231068597,5.404,2582.8,2582.0,0.7]
[1724231069392,5.404,2583.2,2582.3,0.7]
[1724231069591,5.404,2583.2,2582.4,2.4363]
[1724231070958,5.404,2583.2,2582.1,2.9976]
[1724231071163,5.404,2583.2,2582.1,2.4476]
[1724231071561,5.404,2583.2,2582.3,0.7]
[1724231071881,0.59926061,2583.1,2582.3,0.7]
[1724231072712,0.59926061,2583.1,2582.1,2.4476]
[1724231073667,0.59926061,2583.1,2581.9,0.7]
[1724231073668,5.404,2582.8,2581.9,0.7]
[1724231074818,2.3776,2582.7,2581.8,2.3187]
[1724231075021,2.3776,2582.7,2581.5,2.3187]
[1724231075022,5.404,2582.4,2581.5,2.3187]
[1724231075769,5.404,2582.4,2581.2,2.4173]
[1724231076123,5.404,2582.0,2581.2,2.4173]
[1724231076711,5.404,2582.0,2581.4,0.7]
[1724231077518,2.3403,2581.9,2581.0,0.7]
[1724231077699,2.3403,2581.9,2580.5,0.7]
[1724231077700,5.404,2581.6,2580.5,0.7]
[1724231077882,5.404,2581.6,2580.8,0.7]
[1724231078390,5.404,2581.6,2580.5,0.7]
[1724231078700,5.404,2581.2,2580.4,2.4053664]
[1724231081905,5.404,2581.2,2580.5,0.7]
[1724231082223,3.0,2581.6,2580.6,0.31053664]
[1724231082525,5.404,2581.3,2580.6,0.03420462]
[1724231083115,5.404,2581.3,2580.8,0.7]
[1724231083321,10.7087,2581.7,2580.8,0.7]
[1724231083553,1.07087,2581.6,2580.8,0.7]
[1724231083674,1.07087,2581.6,2580.5,0.7]
[1724231084022,1.07087,2581.6,2580.6,0.55]
[1724231084319,1.07087,2581.6,2580.8,0.7]
[1724231084484,1.07087,2581.6,2580.6,0.03598364]
[1724231084686,1.177957,2581.5,2580.5,0.55]
[1724231084885,1.177957,2581.5,2580.7,0.03584383]
[1724231085088,1.177957,2581.5,2580.5,0.55]
[1724231085324,1.177957,2581.5,2580.8,0.03588111]
[1724231085479,5.3047,2581.7,2580.4,3.1053664]
[1724231085676,2.3047,2581.7,2580.4,3.1053664]
[1724231085880,2.3047,2581.7,2580.5,0.03588111]
[1724231086525,5.404,2581.3,2580.5,0.03588111]
[1724231087131,2.3047,2581.7,2580.5,0.03588111]
[1724231087290,0.53047,2581.6,2580.5,0.35000586]
[1724231087490,5.404,2581.4,2580.5,0.03588111]
[1724231095335,0.53047,2581.6,2580.9,2.9785]
[1724231095777,0.53047,2581.6,2581.0,0.03590906]
[1724231098516,5.404,2581.8,2581.0,0.03590906]
[1724231098956,5.404,2581.8,2581.2,0.7]
[1724231099402,5.404,2581.8,2581.3,0.03559218]
[1724231099803,5.404,2581.8,2581.2,0.7]
[1724231100109,5.404,2581.8,2581.3,0.03559218]
[1724231100110,6.52612,2581.8,2581.3,0.03559218]
[1724231100471,6.52612,2581.8,2580.9,2.2785]
[1724231100789,6.52612,2581.8,2581.0,0.03554559]
[1724231102963,3.0,2582.1,2581.2,0.7]
[1724231103162,5.404,2582.2,2581.2,0.7]
[1724231103459,5.404,2582.2,2581.3,2.44954559]
[1724231104881,5.404,2582.2,2581.3,2.414]
[1724231105082,5.404,2582.2,2581.4,0.3114]
[1724231105287,5.404,2582.2,2581.6,2.4116]
[1724231105609,3.0,2582.5,2581.6,2.4116]
[1724231105914,3.0,2582.5,2581.6,3.1116]
[1724231106963,5.404,2582.6,2581.6,3.1116]
[1724231107207,5.404,2582.6,2581.7,2.4298]
[1724231107575,5.404,2582.6,2581.8,0.0345486]
[1724231108017,5.404,2582.6,2581.7,2.4298]
[1724231108512,20.93696061,2583.1,2581.1,0.07746059]
[1724231108513,5.404,2583.0,2582.0,2.4692]
[1724231108824,5.404,2583.0,2581.9,0.7]
[1724231108825,1.41509606,2582.9,2582.2,2.3807]
[1724231109308,1.41509606,2582.9,2582.3,0.03443683]
[1724231109513,1.41509606,2582.9,2582.2,3.0807]
[1724231109666,1.41509606,2582.9,2582.3,0.03430644]
[1724231109860,1.41509606,2582.9,2582.2,3.0807]
[1724231109861,5.8172,2583.1,2582.4,2.4212]
[1724231110591,2.4795,2583.0,2582.2,0.7]
[1724231111017,5.8172,2583.1,2582.3,0.03400845]
[1724231111635,11.2212,2583.1,2582.4,2.2541]
[1724231111805,11.2212,2583.1,2582.4,2.55291085]
[1724231112463,11.2212,2583.1,2582.4,2.2541]
[1724231112464,5.8172,2583.1,2582.4,2.2541]
[1724231112761,5.8172,2583.1,2581.7,3.94]
[1724231112762,2.40456899,2583.4,2582.8,0.7]
[1724231112959,0.90163339,2584.2,2582.8,0.7]
[1724231112960,0.40071908,2583.1,2582.9,2.67568]
[1724231113158,2.2677,2584.2,2583.1,0.7]
[1724231113504,5.404,2584.0,2583.1,0.7]
[1724231113928,2.69270902,2584.3,2583.4,0.7]
[1724231114104,0.2692709,2584.2,2583.2,2.3393]
[1724231115005,3.2692709,2584.2,2583.2,2.3393]
[1724231116125,5.404,2584.1,2583.2,2.3393]
[1724231116606,3.0,2584.0,2583.2,2.3393]
[1724231119600,5.404,2583.7,2582.8,0.7]
[1724231119801,5.404,2583.7,2582.8,1.00929]
[1724231120102,5.404,2583.7,2582.9,2.3466]
[1724231123720,5.404,2583.3,2582.8,0.7]
[1724231123900,2.2577,2583.1,2582.0,2.9987]
[1724231125625,4.05,2582.6,2582.0,2.9987]
[1724231126083,3.0,2583.2,2582.3,0.7]
[1724231126546,2.2966,2583.4,2582.3,0.7]
[1724231126730,5.398,2583.1,2582.3,0.7]
[1724231127742,5.398,2583.1,2582.4,2.3554]
[1724231127939,5.398,2583.1,2582.4,2.66094]
[1724231128672,5.298,2583.1,2582.4,2.66094]
[1724231129369,5.298,2583.1,2582.6,0.7]
[1724231129869,11.2152,2583.7,2582.9,3.0647]
[1724231130068,5.398,2583.7,2582.9,3.0647]
[1724231130277,6.20543,2583.7,2582.9,3.37117]
[1724231131369,5.398,2583.7,2582.9,3.37117]
[1724231133699,1.12152,2584.4,2583.6,0.17644623]
[1724231134275,11.2152,2584.5,2583.8,0.7]
[1724231134780,11.2152,2584.5,2583.7,2.3984]
[1724231135090,11.2152,2584.5,2583.3,2.3666]
[1724231135091,5.8172,2584.5,2583.3,2.3666]
[1724231135445,6.21818641,2584.5,2583.4,0.17580428]
[1724231135659,2.2554,2584.3,2583.4,0.17580428]
[1724231135983,0.52554,2584.2,2582.9,3.37107]
[1724231136187,5.8172,2584.1,2583.5,0.17573918]
[1724231136384,5.8172,2584.1,2583.2,0.7]
[1724231136756,5.8172,2584.1,2583.3,0.17573918]
[1724231137085,7.896014,2584.1,2583.3,0.17573918]
[1724231137258,5.8172,2584.1,2583.5,3.0035]
[1724231137858,5.8172,2584.1,2583.6,0.17573918]
[1724231138194,5.8172,2584.1,2583.5,3.0035]
[1724231138195,5.398,2584.4,2583.5,3.0035]
[1724231138343,5.398,2584.4,2583.6,0.55]
[1724231138541,5.398,2584.4,2583.9,0.7]
[1724231139217,5.398,2584.4,2584.0,0.17495744]
[1724231139514,2.4254,2584.3,2583.3,9.6758]
[1724231139695,2.4254,2584.3,2583.4,0.17495744]
[1724231139859,0.24254,2584.2,2583.4,0.17495744]
[1724231140064,3.24254,2584.2,2583.4,0.17495744]
[1724231140278,3.24254,2584.2,2583.1,0.7]
[1724231140615,5.398,2583.9,2583.2,0.17495744]
[1724231141463,5.381,2583.8,2583.2,0.17495744]
[1724231141680,1.0779,2583.7,2582.7,2.2664]
[1724231141871,2.381,2583.8,2582.8,0.16938158]
[1724231142075,5.398,2583.1,2582.4,2.4988]
[1724231144771,5.398,2583.1,2582.6,0.7]
[1724231144988,5.398,2583.5,2582.6,0.7]
[1724231145208,6.48528,2583.5,2582.6,0.7]
[1724231145871,6.48528,2583.5,2582.4,2.4988]
[1724231146076,3.0,2583.4,2582.5,0.7]
[1724231146277,3.0,2583.4,2582.4,2.4988]
[1724231146492,3.0,2583.4,2582.4,3.1988]
[1724231146710,4.196008,2583.4,2582.5,0.48710971]
[1724231147094,4.196008,2583.4,2582.7,0.7]
[1724231147329,5.398,2583.9,2582.7,0.7]
[1724231147532,3.0,2583.8,2582.8,2.4529]
[1724231149233,3.0,2583.8,2583.1,0.7]
[1724231149639,3.0,2583.8,2583.2,0.16722971]
[1724231149851,5.398,2583.9,2583.2,0.16722971]
[1724231150776,6.05974,2584.2,2583.3,2.4542]
[1724231151066,6.05974,2584.2,2583.3,2.78634297]
[1724231151417,6.05974,2584.2,2583.4,0.16736892]
[1724231152999,5.8172,2584.2,2583.4,0.86736892]
[1724231153143,5.398,2584.3,2583.4,0.86736892]
[1724231154495,2.3896,2584.4,2583.4,0.86736892]
[1724231154496,3.0,2584.6,2583.8,2.443]
[1724231154694,7.7121,2584.7,2583.8,2.443]
[1724231155200,5.398,2584.7,2583.8,2.443]
[1724231155494,5.398,2584.7,2584.0,0.7]
[1724231155987,5.398,2584.7,2584.1,0.16673792]
[1724231156173,3.0,2584.6,2584.1,0.16673792]
[1724231158357,3.0,2584.6,2583.8,2.443]
[1724231158546,3.0,2584.6,2584.2,0.16670518]
[1724231158885,3.0,2584.6,2583.8,2.443]
[1724231159196,3.0,2584.6,2583.9,0.3143]
[1724231159496,3.0,2584.6,2583.9,0.48100518]
[1724231160696,4.043,2584.7,2584.0,0.7]
[1724231160917,4.043,2584.7,2584.1,2.2658]
[1724231161530,5.8172,2584.8,2583.6,7.41]
[1724231161531,4.043,2584.4,2583.6,7.41]
[1724231161819,2.41285228,2584.5,2583.7,0.16660314]
[1724231162039,2.41285228,2584.4,2583.7,0.16660314]
[1724231162169,2.41285228,2584.4,2583.2,2.3604]
[1724231162372,5.8172,2584.3,2583.8,0.16649183]
[1724231162680,5.394,2584.1,2583.2,2.3604]
[1724231162880,2.3843,2584.0,2583.3,0.16649183]
[1724231163216,5.3843,2584.0,2582.8,2.4577]
[1724231163418,7.79689868,2584.0,2582.8,2.4577]
[1724231163566,7.79689868,2584.0,2582.9,0.16623203]
[1724231163767,5.394,2583.6,2582.9,0.16623203]
[1724231164011,5.394,2583.6,2582.9,0.42862523]
[1724231164311,5.394,2583.6,2582.9,0.2623932]
[1724231165326,5.394,2583.2,2582.3,0.7]
[1724231165669,5.394,2583.2,2582.4,0.16623203]
[1724231166023,5.394,2583.2,2582.3,0.7]
[1724231166483,5.394,2583.2,2582.4,2.3814]
[1724231166655,5.8172,2583.5,2582.6,0.7]
[1724231168030,5.8172,2583.5,2582.9,0.7]
[1724231168324,5.394,2583.6,2582.5,8.41814]
[1724231168562,5.394,2583.2,2582.6,0.16623203]
[1724231168718,0.5394,2583.1,2582.6,0.16623203]
[1724231168921,7.7,2583.2,2582.6,0.16623203]
[1724231169336,7.7,2583.2,2582.4,2.3814]
[1724231170122,5.394,2583.2,2582.4,2.3814]
[1724231171873,5.394,2582.8,2582.2,0.7]
[1724231172242,5.394,2582.8,2582.3,0.16623203]
[1724231173084,5.394,2582.8,2582.3,0.47805523]
[1724231175273,5.8172,2583.0,2582.3,0.47805523]
[1724231175566,5.8172,2583.0,2582.3,0.3118232]
[1724231176325,5.8172,2583.0,2582.4,0.16740159]
[1724231176636,5.8172,2583.0,2582.3,0.3118232]
[1724231176822,5.394,2583.2,2582.5,0.16740159]
[1724231177023,6.32887839,2583.2,2582.3,0.3118232]
[1724231177222,6.32887839,2583.2,2582.6,0.16740159]
[1724231177526,6.32887839,2583.2,2582.7,0.16740159]
[1724231177720,6.32887839,2583.2,2582.3,0.3118232]
[1724231177924,5.394,2583.2,2582.3,0.3118232]
[1724231178171,5.394,2583.2,2582.4,0.16740159]
[1724231179500,0.60710759,2583.5,2582.6,0.7]
[1724231180109,0.60710759,2583.5,2582.7,0.16740159]
[1724231181156,0.60710759,2583.5,2582.8,2.4844]
[1724231181386,0.60710759,2583.5,2582.9,0.26518016]
[1724231181599,0.60710759,2583.5,2582.9,1.13258175]
[1724231181760,5.8172,2584.0,2583.0,2.3995]
[1724231181953,6.42417356,2584.0,2583.0,2.3995]
[1724231182154,6.42417356,2584.0,2583.1,0.16740159]
[1724231182454,8.83325237,2584.0,2583.1,0.16740159]
[1724231182655,2.4667,2583.9,2583.1,0.16740159]
[1724231182853,1.12999524,2583.8,2583.1,0.16740159]
[1724231183433,4.12999524,2583.8,2582.7,2.4373]
[1724231183600,4.12999524,2583.8,2583.2,0.16740159]
[1724231183601,5.394,2583.5,2583.2,0.16740159]
[1724231183928,2.3603,2583.4,2582.3,3.1373]
[1724231184130,8.1775,2583.4,2583.3,0.16740159]
[1724231184422,4.93645,2583.4,2582.3,3.1373]
[1724231184629,8.1775,2583.4,2583.3,0.16740159]
[1724231184939,5.394,2583.5,2582.3,3.1373]
[1724231185234,4.12999524,2583.8,2582.8,2.3804]
[1724231186101,4.12999524,2583.8,2583.0,0.7]
[1724231186845,5.8172,2583.9,2583.1,2.4314]
[1724231187021,5.8172,2583.9,2583.1,2.3814]
[1724231187987,0.60697356,2584.0,2583.3,0.7]
[1724231190033,0.60697356,2584.0,2583.4,2.3949]
[1724231190486,3.07607356,2584.0,2583.1,2.2861]
[1724231190686,0.60009736,2583.9,2583.1,2.2861]
[1724231190885,5.394,2583.7,2583.1,2.2861]
[1724231191113,0.60009736,2583.9,2583.1,2.2861]
[1724231191431,3.01226716,2583.9,2582.7,3.0781]
[1724231191602,5.394,2583.6,2582.7,3.38591]
[1724231192208,5.394,2583.6,2582.7,2.68591]
[1724231192410,2.4149,2583.5,2582.7,2.3781]
[1724231192592,2.4149,2583.5,2582.1,0.7]
[1724231192593,5.394,2583.2,2582.4,0.7]